[Event "Titled Tuesday Blitz June 20 Early 2023"]
[White "Guzman Moneo, Alberto"]
[Black "chess123456s"]
[WhiteFideId "2209616"]
[WhiteElo "2157"]
[BlackElo "2521"]
[Result "0-1"]
[Round "4"]
[TimeControl "180+2"]
[Date "2023.06.20"]
[WhiteClock "0:01:06"]
[BlackClock "0:01:02"]
[Board "151"]

1. e4 {[%clk 0:03:00]}  e5 {[%clk 0:02:59]} 2. d4 {[%clk 0:02:59]}  exd4 {[%clk 0:02:59]} 3. Qxd4 {[%clk 0:02:59]}  Nc6 {[%clk 0:02:59]} 4. Qe3 {[%clk 0:02:59]}  Nf6 {[%clk 0:02:59]} 5. Nc3 {[%clk 0:02:59]}  Bb4 {[%clk 0:02:59]} 6. Bd2 {[%clk 0:02:59]}  O-O {[%clk 0:03:00]} 7. O-O-O {[%clk 0:02:59]}  Re8 {[%clk 0:03:00]} 8. Qg3 {[%clk 0:02:59]}  Nxe4 {[%clk 0:02:59]} 9. Nxe4 {[%clk 0:02:58]}  Rxe4 {[%clk 0:03:00]} 10. c3 {[%clk 0:02:59]}  Bf8 {[%clk 0:02:52]} 11. Bd3 {[%clk 0:02:58]}  Re8 {[%clk 0:02:50]} 12. f4 {[%clk 0:02:58]}  d5 {[%clk 0:02:49]} 13. Nf3 {[%clk 0:02:58]}  Qf6 {[%clk 0:02:44]} 14. Ng5 {[%clk 0:02:49]}  Bf5 {[%clk 0:02:39]} 15. h4 {[%clk 0:02:47]}  h6 {[%clk 0:02:31]} 16. h5 {[%clk 0:02:42]}  Bxd3 {[%clk 0:01:59]} 17. Qxd3 {[%clk 0:02:38]}  hxg5 {[%clk 0:01:59]} 18. fxg5 {[%clk 0:02:39]}  Ne5 {[%clk 0:01:59]} 19. Qc2 {[%clk 0:02:34]}  Qa6 {[%clk 0:01:55]} 20. a3 {[%clk 0:02:10]}  Qd3 {[%clk 0:01:44]} 21. Qb3 {[%clk 0:02:10]}  Qf5 {[%clk 0:01:44]} 22. Rhf1 {[%clk 0:01:53]}  Nd3+ {[%clk 0:01:40]} 23. Kb1 {[%clk 0:01:52]}  Nc5+ {[%clk 0:01:37]} 24. Ka2 {[%clk 0:01:51]}  Nxb3 {[%clk 0:01:37]} 25. Rxf5 {[%clk 0:01:51]}  Nxd2 {[%clk 0:01:37]} 26. Rxd2 {[%clk 0:01:52]}  c6 {[%clk 0:01:36]} 27. Rdf2 {[%clk 0:01:51]}  Re7 {[%clk 0:01:37]} 28. g4 {[%clk 0:01:52]}  g6 {[%clk 0:01:34]} 29. hxg6 {[%clk 0:01:49]}  fxg6 {[%clk 0:01:35]} 30. Rf6 {[%clk 0:01:50]}  Rg7 {[%clk 0:01:30]} 31. Re6 {[%clk 0:01:42]}  Be7 {[%clk 0:01:28]} 32. Rfe2 {[%clk 0:01:42]}  Bxg5 {[%clk 0:01:25]} 33. Re8+ {[%clk 0:01:42]}  Rxe8 {[%clk 0:01:24]} 34. Rxe8+ {[%clk 0:01:42]}  Kh7 {[%clk 0:01:24]} 35. Rb8 {[%clk 0:01:41]}  Bf4 {[%clk 0:01:22]} 36. Ra8 {[%clk 0:01:40]}  a6 {[%clk 0:01:21]} 37. Kb3 {[%clk 0:01:40]}  g5 {[%clk 0:01:21]} 38. Kb4 {[%clk 0:01:37]}  Re7 {[%clk 0:01:21]} 39. Ra7 {[%clk 0:01:34]}  Kg6 {[%clk 0:01:18]} 40. Ka5 {[%clk 0:01:30]}  Kf6 {[%clk 0:01:14]} 41. b4 {[%clk 0:01:30]}  Ke5 {[%clk 0:01:11]} 42. a4 {[%clk 0:01:26]}  Ke4 {[%clk 0:01:10]} 43. b5 {[%clk 0:01:26]}  axb5 {[%clk 0:01:03]} 44. axb5 {[%clk 0:01:27]}  b6+ {[%clk 0:01:03]} 45. Ka6 {[%clk 0:01:26]}  Rxa7+ {[%clk 0:01:03]} 46. Kxa7 {[%clk 0:01:27]}  cxb5 {[%clk 0:01:03]} 47. Kxb6 {[%clk 0:01:27]}  d4 {[%clk 0:01:03]} 48. cxd4 {[%clk 0:01:26]}  b4 {[%clk 0:01:04]} 49. d5 {[%clk 0:01:25]}  Kxd5 {[%clk 0:01:03]} 50. Kb7 {[%clk 0:01:18]}  b3 {[%clk 0:01:04]} 51. Kc8 {[%clk 0:01:17]}  b2 {[%clk 0:01:04]} 52. Kd7 {[%clk 0:01:16]}  b1=Q {[%clk 0:01:04]} 53. Ke7 {[%clk 0:01:16]}  Qb6 {[%clk 0:01:01]} 54. Kf7 {[%clk 0:01:15]}  Ke5 {[%clk 0:01:01]} 55. Kg8 {[%clk 0:01:15]}  Qc7 {[%clk 0:01:01]} 56. Kf8 {[%clk 0:01:06]}  Kf6 {[%clk 0:01:02]} 0-1


[Site "https://www.chess.com"]

[Event "Titled Tuesday Blitz June 20 Early 2023"]
[White "Nikologorsky, Matfei"]
[Black "Mazarini41"]
[WhiteFideId "24102474"]
[WhiteElo "2153"]
[BlackElo "2516"]
[Result "1-0"]
[Round "4"]
[TimeControl "180+2"]
[Date "2023.06.20"]
[WhiteClock "0:00:20"]
[BlackClock "0:00:00"]
[Board "152"]

1. e4 {[%clk 0:03:00]}  e6 {[%clk 0:02:57]} 2. d4 {[%clk 0:03:00]}  d5 {[%clk 0:02:57]} 3. Nd2 {[%clk 0:03:01]}  c5 {[%clk 0:02:57]} 4. Ngf3 {[%clk 0:03:01]}  cxd4 {[%clk 0:02:53]} 5. Nxd4 {[%clk 0:03:02]}  Nf6 {[%clk 0:02:50]} 6. Bb5+ {[%clk 0:02:47]}  Bd7 {[%clk 0:02:46]} 7. exd5 {[%clk 0:02:48]}  Bxb5 {[%clk 0:02:36]} 8. Nxb5 {[%clk 0:02:49]}  Nxd5 {[%clk 0:02:35]} 9. c4 {[%clk 0:02:32]}  Nf6 {[%clk 0:02:30]} 10. O-O {[%clk 0:02:21]}  Nc6 {[%clk 0:02:20]} 11. Nf3 {[%clk 0:02:11]}  Bc5 {[%clk 0:02:11]} 12. Bg5 {[%clk 0:01:51]}  O-O {[%clk 0:02:07]} 13. Nc3 {[%clk 0:01:48]}  Qxd1 {[%clk 0:02:00]} 14. Raxd1 {[%clk 0:01:47]}  Rfd8 {[%clk 0:01:55]} 15. Bxf6 {[%clk 0:01:45]}  gxf6 {[%clk 0:01:55]} 16. Ne4 {[%clk 0:01:43]}  Be7 {[%clk 0:01:53]} 17. g4 {[%clk 0:01:35]}  Nb4 {[%clk 0:01:48]} 18. Nc3 {[%clk 0:01:14]}  Nd3 {[%clk 0:01:41]} 19. b3 {[%clk 0:01:11]}  Bb4 {[%clk 0:01:24]} 20. Ne4 {[%clk 0:01:04]}  Kg7 {[%clk 0:01:23]} 21. h4 {[%clk 0:01:01]}  h5 {[%clk 0:01:15]} 22. g5 {[%clk 0:00:48]}  fxg5 {[%clk 0:01:07]} 23. hxg5 {[%clk 0:00:48]}  Be7 {[%clk 0:00:50]} 24. Kg2 {[%clk 0:00:44]}  Rd7 {[%clk 0:00:40]} 25. Kg3 {[%clk 0:00:19]}  Rad8 {[%clk 0:00:37]} 26. Rh1 {[%clk 0:00:20]}  Nf4 {[%clk 0:00:23]} 27. Rxd7 {[%clk 0:00:19]}  Ne2+ {[%clk 0:00:22]} 28. Kg2 {[%clk 0:00:19]}  Rxd7 {[%clk 0:00:21]} 29. Ne5 {[%clk 0:00:20]}  Rd4 {[%clk 0:00:20]} 30. Kf3 {[%clk 0:00:20]}  Bb4 {[%clk 0:00:03]} 31. Nf6 {[%clk 0:00:19]}  Nc3 {[%clk 0:00:01]} 32. Nxh5+ {[%clk 0:00:19]}  Kf8 {[%clk 0:00:00]} 33. Nf6 {[%clk 0:00:20]} 1-0


[Site "https://www.chess.com"]

[Event "Titled Tuesday Blitz June 20 Early 2023"]
[White "Toropov, Pavel"]
[Black "Lopez Del Alamo, Antonio"]
[WhiteFideId "24129178"]
[BlackFideId "2227339"]
[WhiteElo "2182"]
[BlackElo "2175"]
[Result "1-0"]
[Round "4"]
[TimeControl "180+2"]
[Date "2023.06.20"]
[WhiteClock "0:00:22"]
[BlackClock "0:00:39"]
[Board "153"]

1. e4 {[%clk 0:02:58]}  c5 {[%clk 0:03:00]} 2. d4 {[%clk 0:02:58]}  cxd4 {[%clk 0:02:59]} 3. Nf3 {[%clk 0:02:58]}  e6 {[%clk 0:02:59]} 4. Nxd4 {[%clk 0:02:58]}  Nf6 {[%clk 0:02:58]} 5. Nc3 {[%clk 0:02:58]}  Nc6 {[%clk 0:02:59]} 6. Ndb5 {[%clk 0:02:58]}  d6 {[%clk 0:02:59]} 7. Bf4 {[%clk 0:02:58]}  e5 {[%clk 0:02:59]} 8. Bg5 {[%clk 0:02:57]}  a6 {[%clk 0:03:00]} 9. Na3 {[%clk 0:02:57]}  b5 {[%clk 0:03:01]} 10. Nd5 {[%clk 0:02:58]}  Be7 {[%clk 0:03:01]} 11. Bxf6 {[%clk 0:02:59]}  Bxf6 {[%clk 0:03:02]} 12. c3 {[%clk 0:02:58]}  O-O {[%clk 0:03:01]} 13. Nc2 {[%clk 0:02:59]}  Bg5 {[%clk 0:03:01]} 14. a4 {[%clk 0:02:47]}  bxa4 {[%clk 0:03:01]} 15. Rxa4 {[%clk 0:02:45]}  a5 {[%clk 0:03:01]} 16. Bb5 {[%clk 0:02:44]}  Ne7 {[%clk 0:02:58]} 17. Bc4 {[%clk 0:02:35]}  Rb8 {[%clk 0:02:55]} 18. b3 {[%clk 0:02:34]}  Ng6 {[%clk 0:02:45]} 19. O-O {[%clk 0:01:41]}  Kh8 {[%clk 0:02:43]} 20. Nce3 {[%clk 0:01:38]}  Nf4 {[%clk 0:02:30]} 21. Nxf4 {[%clk 0:01:34]}  exf4 {[%clk 0:02:28]} 22. Nd5 {[%clk 0:01:34]}  f5 {[%clk 0:02:19]} 23. Re1 {[%clk 0:01:20]}  fxe4 {[%clk 0:02:15]} 24. Rxe4 {[%clk 0:01:17]}  f3 {[%clk 0:02:14]} 25. g3 {[%clk 0:01:16]}  Bf5 {[%clk 0:02:02]} 26. Re1 {[%clk 0:01:12]}  Bg6 {[%clk 0:01:20]} 27. b4 {[%clk 0:01:06]}  axb4 {[%clk 0:01:12]} 28. cxb4 {[%clk 0:01:07]}  h6 {[%clk 0:01:04]} 29. b5 {[%clk 0:00:42]}  Qd7 {[%clk 0:01:03]} 30. Qd4 {[%clk 0:00:35]}  Rf4 {[%clk 0:01:00]} 31. Nxf4 {[%clk 0:00:30]}  Bxf4 {[%clk 0:00:56]} 32. Qxf4 {[%clk 0:00:22]}  d5 {[%clk 0:00:39]} 1-0


[Site "https://www.chess.com"]

[Event "Titled Tuesday Blitz June 20 Early 2023"]
[White "Dixit, Nikhil"]
[Black "Abduzhaparov"]
[WhiteFideId "5059534"]
[WhiteElo "2207"]
[BlackElo "2385"]
[Result "1/2-1/2"]
[Round "4"]
[TimeControl "180+2"]
[Date "2023.06.20"]
[WhiteClock "0:00:24"]
[BlackClock "0:00:20"]
[Board "154"]

1. e4 {[%clk 0:03:00]}  d6 {[%clk 0:03:00]} 2. d4 {[%clk 0:03:00]}  Nf6 {[%clk 0:03:01]} 3. Nc3 {[%clk 0:03:00]}  e5 {[%clk 0:03:02]} 4. dxe5 {[%clk 0:03:00]}  dxe5 {[%clk 0:03:03]} 5. Qxd8+ {[%clk 0:03:00]}  Kxd8 {[%clk 0:03:04]} 6. Bc4 {[%clk 0:02:59]}  Ke8 {[%clk 0:03:04]} 7. f3 {[%clk 0:02:53]}  a6 {[%clk 0:03:03]} 8. Bg5 {[%clk 0:02:46]}  Nbd7 {[%clk 0:03:02]} 9. Nge2 {[%clk 0:02:27]}  h6 {[%clk 0:03:01]} 10. Bh4 {[%clk 0:02:20]}  g5 {[%clk 0:03:01]} 11. Bf2 {[%clk 0:02:19]}  Bc5 {[%clk 0:03:00]} 12. Bxc5 {[%clk 0:02:16]}  Nxc5 {[%clk 0:03:01]} 13. Nd5 {[%clk 0:02:15]}  Nxd5 {[%clk 0:02:58]} 14. Bxd5 {[%clk 0:02:15]}  c6 {[%clk 0:02:53]} 15. Bb3 {[%clk 0:02:13]}  b5 {[%clk 0:02:44]} 16. Kf2 {[%clk 0:02:11]}  a5 {[%clk 0:02:31]} 17. a3 {[%clk 0:02:04]}  Ke7 {[%clk 0:02:10]} 18. Ke3 {[%clk 0:01:55]}  Nxb3 {[%clk 0:01:52]} 19. cxb3 {[%clk 0:01:56]}  Be6 {[%clk 0:01:53]} 20. b4 {[%clk 0:01:43]}  axb4 {[%clk 0:01:54]} 21. axb4 {[%clk 0:01:44]}  Rhd8 {[%clk 0:01:40]} 22. Rhc1 {[%clk 0:01:36]}  Bc4 {[%clk 0:01:39]} 23. Rxa8 {[%clk 0:01:33]}  Rxa8 {[%clk 0:01:37]} 24. Ng3 {[%clk 0:01:26]}  Ra2 {[%clk 0:01:28]} 25. Nf5+ {[%clk 0:01:21]}  Kf6 {[%clk 0:01:23]} 26. b3 {[%clk 0:01:20]}  Ra3 {[%clk 0:01:22]} 27. Rc3 {[%clk 0:01:01]}  h5 {[%clk 0:01:21]} 28. Nd6 {[%clk 0:00:30]}  Rxb3 {[%clk 0:01:21]} 29. Rxb3 {[%clk 0:00:31]}  Bxb3 {[%clk 0:01:22]} 30. Nb7 {[%clk 0:00:32]}  Ke7 {[%clk 0:01:10]} 31. Na5 {[%clk 0:00:32]}  Ba2 {[%clk 0:01:04]} 32. Nxc6+ {[%clk 0:00:32]}  Kd6 {[%clk 0:01:05]} 33. Na5 {[%clk 0:00:23]}  Kc7 {[%clk 0:01:02]} 34. g3 {[%clk 0:00:23]}  f6 {[%clk 0:00:56]} 35. Kf2 {[%clk 0:00:22]}  Be6 {[%clk 0:00:48]} 36. h4 {[%clk 0:00:22]}  gxh4 {[%clk 0:00:44]} 37. gxh4 {[%clk 0:00:22]}  Ba2 {[%clk 0:00:36]} 38. Ke3 {[%clk 0:00:22]}  Be6 {[%clk 0:00:31]} 39. f4 {[%clk 0:00:22]}  Bf7 {[%clk 0:00:28]} 40. fxe5 {[%clk 0:00:21]}  fxe5 {[%clk 0:00:28]} 41. Kf3 {[%clk 0:00:22]}  Be6 {[%clk 0:00:25]} 42. Ke3 {[%clk 0:00:23]}  Bf7 {[%clk 0:00:22]} 43. Kd3 {[%clk 0:00:23]}  Be6 {[%clk 0:00:20]} 44. Ke3 {[%clk 0:00:24]}  Bf7 {[%clk 0:00:20]} 1/2-1/2


[Site "https://www.chess.com"]

[Event "Titled Tuesday Blitz June 20 Early 2023"]
[White "Gu, Xiaobing"]
[Black "Droin, Augustin"]
[WhiteFideId "8602611"]
[BlackFideId "45105987"]
[WhiteElo "2174"]
[BlackElo "2333"]
[Result "0-1"]
[Round "4"]
[TimeControl "180+2"]
[Date "2023.06.20"]
[WhiteClock "0:00:10"]
[BlackClock "0:00:29"]
[Board "155"]

1. e4 {[%clk 0:02:56]}  e5 {[%clk 0:02:59]} 2. Nf3 {[%clk 0:02:49]}  Nc6 {[%clk 0:02:59]} 3. Bc4 {[%clk 0:02:49]}  Nf6 {[%clk 0:02:59]} 4. d4 {[%clk 0:02:44]}  exd4 {[%clk 0:02:58]} 5. e5 {[%clk 0:02:44]}  d5 {[%clk 0:02:58]} 6. Bb5 {[%clk 0:02:44]}  Nd7 {[%clk 0:02:59]} 7. O-O {[%clk 0:02:30]}  Be7 {[%clk 0:02:58]} 8. Re1 {[%clk 0:02:11]}  O-O {[%clk 0:02:57]} 9. Bxc6 {[%clk 0:02:09]}  bxc6 {[%clk 0:02:58]} 10. Nxd4 {[%clk 0:02:09]}  Nb8 {[%clk 0:02:58]} 11. Qh5 {[%clk 0:02:07]}  c5 {[%clk 0:02:54]} 12. Nf5 {[%clk 0:02:05]}  Bxf5 {[%clk 0:02:45]} 13. Qxf5 {[%clk 0:01:57]}  Nc6 {[%clk 0:02:45]} 14. c3 {[%clk 0:01:46]}  Kh8 {[%clk 0:02:24]} 15. Nd2 {[%clk 0:01:33]}  Qc8 {[%clk 0:02:15]} 16. Qh5 {[%clk 0:01:31]}  Qe6 {[%clk 0:02:13]} 17. Nf3 {[%clk 0:01:27]}  d4 {[%clk 0:02:10]} 18. Bf4 {[%clk 0:01:21]}  Rab8 {[%clk 0:02:05]} 19. Re2 {[%clk 0:00:57]}  d3 {[%clk 0:01:39]} 20. Rd2 {[%clk 0:00:56]}  c4 {[%clk 0:01:38]} 21. Re1 {[%clk 0:00:56]}  a5 {[%clk 0:01:30]} 22. h4 {[%clk 0:00:56]}  a4 {[%clk 0:01:27]} 23. Ng5 {[%clk 0:00:56]}  Bxg5 {[%clk 0:01:24]} 24. hxg5 {[%clk 0:00:56]}  a3 {[%clk 0:01:20]} 25. bxa3 {[%clk 0:00:50]}  Ne7 {[%clk 0:01:00]} 26. Re4 {[%clk 0:00:32]}  Rb1+ {[%clk 0:00:59]} 27. Kh2 {[%clk 0:00:31]}  Qf5 {[%clk 0:00:56]} 28. Rxc4 {[%clk 0:00:29]}  Ng6 {[%clk 0:00:48]} 29. Bg3 {[%clk 0:00:28]}  Nxe5 {[%clk 0:00:48]} 30. Rf4 {[%clk 0:00:27]}  Qd7 {[%clk 0:00:32]} 31. Rh4 {[%clk 0:00:26]}  Qf5 {[%clk 0:00:30]} 32. Bxe5 {[%clk 0:00:25]}  Qxe5+ {[%clk 0:00:30]} 33. f4 {[%clk 0:00:25]}  Qf5 {[%clk 0:00:29]} 34. g4 {[%clk 0:00:24]}  Qe4 {[%clk 0:00:29]} 35. Rg2 {[%clk 0:00:19]}  Qxf4+ {[%clk 0:00:29]} 36. Rg3 {[%clk 0:00:15]}  Rb2+ {[%clk 0:00:29]} 37. Kh3 {[%clk 0:00:10]}  Qf1+ {[%clk 0:00:29]} 0-1


[Site "https://www.chess.com"]

[Event "Titled Tuesday Blitz June 20 Early 2023"]
[White "Turzo, Attila"]
[Black "Topalov, Aleksandar"]
[WhiteFideId "704954"]
[BlackFideId "925659"]
[WhiteElo "2510"]
[BlackElo "2151"]
[Result "1-0"]
[Round "4"]
[TimeControl "180+2"]
[Date "2023.06.20"]
[WhiteClock "0:00:44"]
[BlackClock "0:00:12"]
[Board "156"]

1. d4 {[%clk 0:03:00]}  Nf6 {[%clk 0:02:36]} 2. c4 {[%clk 0:03:00]}  c5 {[%clk 0:02:36]} 3. d5 {[%clk 0:02:59]}  d6 {[%clk 0:02:36]} 4. g3 {[%clk 0:02:58]}  g6 {[%clk 0:02:37]} 5. Bg2 {[%clk 0:02:59]}  Bg7 {[%clk 0:02:36]} 6. Nf3 {[%clk 0:02:59]}  O-O {[%clk 0:02:37]} 7. O-O {[%clk 0:03:00]}  Na6 {[%clk 0:02:37]} 8. Nc3 {[%clk 0:02:59]}  Nc7 {[%clk 0:02:37]} 9. a4 {[%clk 0:02:53]}  b6 {[%clk 0:02:33]} 10. e4 {[%clk 0:02:49]}  Bg4 {[%clk 0:02:05]} 11. h3 {[%clk 0:02:40]}  Bxf3 {[%clk 0:02:03]} 12. Bxf3 {[%clk 0:02:41]}  a6 {[%clk 0:02:02]} 13. Be2 {[%clk 0:02:33]}  Nd7 {[%clk 0:02:01]} 14. Qc2 {[%clk 0:02:31]}  Rb8 {[%clk 0:02:01]} 15. Kg2 {[%clk 0:02:29]}  e6 {[%clk 0:02:01]} 16. Bf4 {[%clk 0:02:21]}  Ne5 {[%clk 0:01:59]} 17. Rad1 {[%clk 0:02:18]}  exd5 {[%clk 0:01:58]} 18. Nxd5 {[%clk 0:01:56]}  Ne6 {[%clk 0:01:58]} 19. Be3 {[%clk 0:01:51]}  Nc6 {[%clk 0:01:58]} 20. Bd3 {[%clk 0:01:40]}  Ned4 {[%clk 0:01:57]} 21. Qd2 {[%clk 0:01:32]}  Ne7 {[%clk 0:01:44]} 22. Bg5 {[%clk 0:01:21]}  f6 {[%clk 0:01:44]} 23. Bh6 {[%clk 0:01:16]}  Nxd5 {[%clk 0:01:42]} 24. cxd5 {[%clk 0:01:15]}  Bxh6 {[%clk 0:01:39]} 25. Qxh6 {[%clk 0:01:15]}  Qd7 {[%clk 0:01:37]} 26. Qd2 {[%clk 0:01:01]}  Qxa4 {[%clk 0:01:27]} 27. Ra1 {[%clk 0:01:01]}  Qb3 {[%clk 0:01:13]} 28. Rxa6 {[%clk 0:01:00]}  Rf7 {[%clk 0:01:11]} 29. Rfa1 {[%clk 0:00:58]}  Re8 {[%clk 0:00:47]} 30. R1a3 {[%clk 0:00:51]}  Qb4 {[%clk 0:00:33]} 31. Qxb4 {[%clk 0:00:51]}  cxb4 {[%clk 0:00:33]} 32. R3a4 {[%clk 0:00:52]}  Nb3 {[%clk 0:00:27]} 33. Rxb4 {[%clk 0:00:45]}  Nc5 {[%clk 0:00:12]} 34. Ra3 {[%clk 0:00:44]} 1-0


[Site "https://www.chess.com"]

[Event "Titled Tuesday Blitz June 20 Early 2023"]
[White "Devaev, Alexander"]
[Black "Kotepalli, Sai Nirupama"]
[WhiteFideId "4169395"]
[BlackFideId "5039444"]
[WhiteElo "2172"]
[BlackElo "2370"]
[Result "0-1"]
[Round "4"]
[TimeControl "180+2"]
[Date "2023.06.20"]
[WhiteClock "0:00:29"]
[BlackClock "0:00:15"]
[Board "159"]

1. Nf3 {[%clk 0:03:00]}  d5 {[%clk 0:02:53]} 2. c4 {[%clk 0:03:00]}  c6 {[%clk 0:02:52]} 3. e3 {[%clk 0:03:00]}  Bf5 {[%clk 0:02:51]} 4. b3 {[%clk 0:03:01]}  e6 {[%clk 0:02:49]} 5. Bb2 {[%clk 0:03:02]}  Nf6 {[%clk 0:02:48]} 6. Be2 {[%clk 0:03:03]}  Nbd7 {[%clk 0:02:44]} 7. O-O {[%clk 0:03:03]}  Bd6 {[%clk 0:02:43]} 8. Nd4 {[%clk 0:03:04]}  Bg6 {[%clk 0:02:42]} 9. f4 {[%clk 0:03:05]}  h6 {[%clk 0:02:38]} 10. f5 {[%clk 0:03:04]}  exf5 {[%clk 0:02:35]} 11. Nxf5 {[%clk 0:03:05]}  Bxf5 {[%clk 0:02:33]} 12. Rxf5 {[%clk 0:03:06]}  O-O {[%clk 0:02:32]} 13. Qf1 {[%clk 0:03:06]}  Qe7 {[%clk 0:02:27]} 14. cxd5 {[%clk 0:03:05]}  cxd5 {[%clk 0:02:24]} 15. Nc3 {[%clk 0:03:06]}  Be5 {[%clk 0:02:15]} 16. Bd3 {[%clk 0:02:48]}  d4 {[%clk 0:02:04]} 17. Nb5 {[%clk 0:02:25]}  dxe3 {[%clk 0:01:52]} 18. Ba3 {[%clk 0:02:26]}  Qd8 {[%clk 0:01:35]} 19. Bxf8 {[%clk 0:02:24]}  Bxa1 {[%clk 0:01:17]} 20. Bb4 {[%clk 0:02:07]}  Be5 {[%clk 0:01:03]} 21. dxe3 {[%clk 0:02:07]}  Qb6 {[%clk 0:00:53]} 22. Bd2 {[%clk 0:02:07]}  a6 {[%clk 0:00:43]} 23. Na3 {[%clk 0:02:07]}  Qd6 {[%clk 0:00:31]} 24. Nc4 {[%clk 0:02:07]}  Bxh2+ {[%clk 0:00:30]} 25. Kh1 {[%clk 0:02:06]}  Qc7 {[%clk 0:00:28]} 26. Ba5 {[%clk 0:00:42]}  b6 {[%clk 0:00:19]} 27. Bd2 {[%clk 0:00:43]}  b5 {[%clk 0:00:18]} 28. Nb2 {[%clk 0:00:35]}  Be5 {[%clk 0:00:17]} 29. Nd1 {[%clk 0:00:35]}  Nc5 {[%clk 0:00:17]} 30. Bb1 {[%clk 0:00:34]}  Nce4 {[%clk 0:00:17]} 31. Be1 {[%clk 0:00:34]}  Bg3 {[%clk 0:00:15]} 32. Bxg3 {[%clk 0:00:29]}  Nxg3+ {[%clk 0:00:15]} 0-1


[Site "https://www.chess.com"]

[Event "Titled Tuesday Blitz June 20 Early 2023"]
[White "Dwilewicz, Katarzyna"]
[Black "angelgab3"]
[WhiteFideId "1148486"]
[WhiteElo "2098"]
[BlackElo "2507"]
[Result "0-1"]
[Round "4"]
[TimeControl "180+2"]
[Date "2023.06.20"]
[WhiteClock "0:00:01"]
[BlackClock "0:01:06"]
[Board "160"]

1. e4 {[%clk 0:03:00]}  e5 {[%clk 0:02:58]} 2. Nf3 {[%clk 0:02:59]}  Nc6 {[%clk 0:02:59]} 3. Bc4 {[%clk 0:03:00]}  Bc5 {[%clk 0:02:58]} 4. c3 {[%clk 0:03:00]}  Nf6 {[%clk 0:02:59]} 5. d3 {[%clk 0:03:00]}  d6 {[%clk 0:02:58]} 6. Nbd2 {[%clk 0:02:58]}  a5 {[%clk 0:02:58]} 7. a4 {[%clk 0:02:56]}  Ba7 {[%clk 0:02:54]} 8. Bb3 {[%clk 0:02:50]}  O-O {[%clk 0:02:55]} 9. O-O {[%clk 0:02:49]}  Ne7 {[%clk 0:02:55]} 10. h3 {[%clk 0:02:43]}  Ng6 {[%clk 0:02:56]} 11. Re1 {[%clk 0:02:43]}  h6 {[%clk 0:02:38]} 12. Nf1 {[%clk 0:02:43]}  Be6 {[%clk 0:02:39]} 13. Ng3 {[%clk 0:02:40]}  Re8 {[%clk 0:02:37]} 14. Be3 {[%clk 0:02:18]}  Bxe3 {[%clk 0:02:29]} 15. fxe3 {[%clk 0:02:14]}  d5 {[%clk 0:02:30]} 16. exd5 {[%clk 0:02:10]}  Bxd5 {[%clk 0:02:30]} 17. Bc2 {[%clk 0:01:54]}  e4 {[%clk 0:02:27]} 18. dxe4 {[%clk 0:01:34]}  Nxe4 {[%clk 0:02:28]} 19. Nxe4 {[%clk 0:01:33]}  Bxe4 {[%clk 0:02:29]} 20. Bxe4 {[%clk 0:01:28]}  Rxe4 {[%clk 0:02:29]} 21. Qxd8+ {[%clk 0:01:24]}  Rxd8 {[%clk 0:02:27]} 22. Kf2 {[%clk 0:01:23]}  Nf8 {[%clk 0:02:06]} 23. Nd4 {[%clk 0:01:07]}  Nd7 {[%clk 0:01:56]} 24. Rad1 {[%clk 0:00:38]}  Nc5 {[%clk 0:01:51]} 25. b3 {[%clk 0:00:29]}  Re7 {[%clk 0:01:45]} 26. Kf3 {[%clk 0:00:27]}  Red7 {[%clk 0:01:26]} 27. g3 {[%clk 0:00:24]}  Nxb3 {[%clk 0:01:19]} 28. Ke2 {[%clk 0:00:17]}  Nc5 {[%clk 0:01:17]} 29. Ra1 {[%clk 0:00:15]}  c6 {[%clk 0:01:17]} 30. Reb1 {[%clk 0:00:13]}  Re8 {[%clk 0:01:17]} 31. Rb6 {[%clk 0:00:10]}  Ne4 {[%clk 0:01:16]} 32. Kd3 {[%clk 0:00:08]}  Nxg3 {[%clk 0:01:16]} 33. Rg1 {[%clk 0:00:09]}  Nf5 {[%clk 0:01:12]} 34. e4 {[%clk 0:00:07]}  Nd6 {[%clk 0:01:11]} 35. Rg4 {[%clk 0:00:03]}  Red8 {[%clk 0:01:08]} 36. e5 {[%clk 0:00:03]}  Nf5 {[%clk 0:01:06]} 37. Rb1 {[%clk 0:00:02]}  c5 {[%clk 0:01:06]} 38. Rbg1 {[%clk 0:00:02]}  cxd4 {[%clk 0:01:06]} 39. cxd4 {[%clk 0:00:01]}  Rxd4+ {[%clk 0:01:06]} 0-1


[Site "https://www.chess.com"]